Cogmind - Beta 16.1 @@@ ROGUE MODE // 2026.02.13 @ 08:13:45 Player: deepledi Result: Destroyed by IW-KKN(R) with Subdweller Laser Performance ------------- Evolutions (0) 0 Regions Visited (3) 600 Robots Destroyed (29) 145 Value Destroyed (533) 533 Prototype IDs (0) 0 Alien Tech Used (0) 0 Bonus (0) 0 TOTAL SCORE: 1278 Bonus ------- None Cogmind --------- Core Integrity 0/250 Matter 291/300 Energy 250/250 System Corruption 0% Temperature Cool (6) Movement Rolling (110) Ox2 Location -10/Subcaves Parts ------- > --- POWER (1) -------- Ion Engine > --- PROPULSION (2) --- Wheel > --- UTILITY (2) ------ Large Storage Unit Signal Interpreter > --- WEAPON (2) ------- Medium Laser Assault Rifle > --- INVENTORY (15) --- Ion Engine Light Treads Light Treads Scrap Suit Improved Heat Sink Small Storage Unit Structural Scanner Sensor Array Medium Laser Assault Rifle Light Assault Rifle Datajack Mining Laser Hammer Peak State ------------ > --- POWER ------------ Ion Engine > --- PROPULSION ------- Light Treads Wheel > --- UTILITY ---------- Large Storage Unit Signal Interpreter > --- WEAPON ----------- Assault Rifle Hammer > --- INVENTORY -------- Ion Engine Light Treads Light Treads Scrap Suit Improved Heat Sink Small Storage Unit Structural Scanner Sensor Array Medium Laser Medium Laser Assault Rifle Light Assault Rifle Datajack Mining Laser [Rating: 9] Favorites ----------- Power Ion Engine Engine Ion Engine Propulsion Light Treads Treads Light Treads Wheel Wheel Utility Large Storage Unit Device Structural Scanner Storage Large Storage Unit Processor Signal Interpreter Weapon Assault Rifle Energy Gun Medium Laser Ballistic Gun Assault Rifle Impact Weapon Hammer Build | -11 -10 -10 -10 ------- Run | Yrd Mat Min Sub Slots Evolved . | . . . . Power . | . . . . Propulsion . | . . . . Utility . | . . . . Weapon . | . . . . Parts Attached 16 | 6 5 3 2 Power 2 | 1 . . 1 Engine 2 | 1 . . 1 Core . | . . . . Reactor . | . . . . Propulsion 5 | 2 2 1 . Treads 3 | 1 2 . . Leg . | . . . . Wheel 2 | 1 . 1 . Hover . | . . . . Flight . | . . . . Utility 4 | 1 2 1 . Device 1 | . 1 . . Storage 2 | 1 1 . . Processor 1 | . . 1 . Hackware . | . . . . Protection . | . . . . Artifact . | . . . . Weapon 5 | 2 1 1 1 Energy Gun 1 | . . . 1 Energy Cannon . | . . . . Ballistic Gun 3 | 2 . 1 . Ballistic Cannon . | . . . . Launcher . | . . . . Special Weapon . | . . . . Impact Weapon 1 | . 1 . . Slashing Weapon . | . . . . Piercing Weapon . | . . . . Special Melee Weapon . | . . . . Unidentified Prototypes . | . . . . Parts Lost 1 | . . . 1 Power . | . . . . Propulsion 1 | . . . 1 Utility . | . . . . Weapon . | . . . . Highest Loss Streak 1 | . . . 1 To Critical Strikes . | . . . . Average Backups 11 | 2 8 14 14 Power . | . 1 1 1 Propulsion 2 | . 2 2 2 Utility 3 | . 1 4 5 Weapon 4 | . 2 5 5 Tool/Special . | . . . . Unused Backups 8 | . . . 8 Power . | . . . . Propulsion 1 | . . . 1 Utility 3 | . . . 3 Weapon 3 | . . . 3 Tool/Special 1 | . . . 1 Average Slot Usage (%) 99 | . 98 100 100 Engine 14 | . 14 14 14 Treads 19 | . 20 20 14 Wheel 8 | . 7 7 14 Device 4 | . 12 . . Storage 14 | . 14 14 14 Processor 8 | . . 13 14 Ballistic Gun 21 | . 25 21 14 Impact Weapon 5 | . 2 6 8 Peak Build Rating 9 | 6 8 9 9 Average Rating 7 | 4 7 8 8 On Entrance 5 | . 6 8 9 Avg Prop Armor Cover (%) 12 | 11 11 12 12 Naked Turns . | . . . . Heaviest Build 30 | 14 30 30 29 Greatest Support 40 | 10 40 40 10 Greatest Overweight (x) 2 | 1 2 2 2 Average Overweight (x) 1 | . 1 1 2 Largest Inventory Capacity 15 | 8 15 15 15 Average Capacity 14 | 7 14 15 15 Most Carried 15 | 4 15 15 15 Average Carried 12 | 2 8 14 15 Final Capacity 15 | 8 15 15 15 Final Carried 15 | 4 15 15 15 Class Distribution -------------------- 100% | Mutant Dominant Class ---------------- Mutant | -10/Materials Mutant | -10/Mines Mutant | -10/Subcaves Resources | -11 -10 -10 -10 ----------- Run | Yrd Mat Min Sub Matter Collected 757 | 233 269 203 52 Remotely . | . . . . Salvage Created 770 | . 283 398 89 Parts 48 | . 18 30 . Haulers Intercepted 2 | . 2 . . Recyclers Shooed 1 | . . 1 . Parts Field Recycled . | . . . . Retrieved Matter . | . . . . Parts Self-Destructed 5 | . . . 5 Prevented . | . . . . Parts Restored . | . . . . Kills | -11 -10 -10 -10 ------- Run | Yrd Mat Min Sub Combat Hostiles Destroyed 22 | . 6 14 2 Melee 2 | . . 2 . Guns 18 | . 6 10 2 Classes Destroyed 8 | . 4 3 1 Worker 1 | . . 1 . Tunneler 1 | . . 1 . Hauler 2 | . 2 . . Recycler 1 | . . 1 . Watcher 2 | . 2 . . Swarmer 15 | . 3 12 . Grunt 5 | . 3 2 . Subdweller 2 | . . . 2 Best Kill Streak 4 | . 3 4 1 Combat Bots Only 4 | . 3 4 1 Max Kills in Single Turn 1 | . 1 1 1 Gunslinging . | . . . . Exploded . | . . . . Melee 1 | . . 1 . Uniques/NPCs Destroyed . | . . . . Combat | -11 -10 -10 -10 -------- Run | Yrd Mat Min Sub Hostile Shots Fired 136 | . 39 79 18 Missed 38 | . 9 24 5 Hits 98 | . 30 55 13 Projectile 98 | . 30 55 13 Critical Strikes 1 | . . 1 . Damage Taken 1049 | . 283 498 268 Core 262 | . 40 117 105 Absorbed by Shields . | . . . . Core Remaining (%) 100 | 100 . . . Volleys Fired 73 | 4 30 27 12 Largest 2 | 1 2 2 2 Hottest 70 | 20 40 40 70 Shots Fired 140 | 4 60 52 24 Gun 140 | 4 60 52 24 Cannon . | . . . . Launcher . | . . . . Special . | . . . . Kinetic 128 | 4 60 52 12 Thermal 12 | . . . 12 Explosive . | . . . . Electromagnetic . | . . . . Robot Hit Streak 21 | 3 4 12 21 Robot Miss Streak 4 | . 4 4 2 Penetration Max . | . . . . Secondary Targets 3 | . 1 2 . Max Gunslinging Chain 1 | . 1 1 . Shots Hit Robots 94 | 3 27 43 21 Core Hits 38 | . 14 19 5 Critical Kills . | . . . . Critical Parts Destroyed 1 | . . 1 . Critical Strikes 3 | . . 1 2 Burn 2 | . . . 2 Smash 1 | . . 1 . Melee Attacks 34 | . 2 16 16 Impact 34 | . 2 16 16 Slashing . | . . . . Piercing . | . . . . Sneak Attacks 6 | . 1 5 . Combat Hostiles . | . . . . Follow-up Attacks . | . . . . Damage Inflicted 1481 | 36 395 815 235 Guns 1015 | 36 332 412 235 Cannons . | . . . . Explosions . | . . . . Melee 458 | . 63 395 . Ramming 8 | . . 8 . Kinetic 893 | 36 332 412 113 Thermal 122 | . . . 122 Explosive . | . . . . Electromagnetic . | . . . . Impact 458 | . 63 395 . Slashing . | . . . . Piercing . | . . . . Highest Corruption . | . . . . Average Corruption . | . . . . Corruption Purged . | . . . . Corruption Blocked . | . . . . Overload Shots . | . . . . Overflow Damage 43 | . . 43 . Projectiles . | . . . . Explosions . | . . . . Melee 43 | . . 43 . Knockbacks . | . . . . Impact . | . . . . Kinetic . | . . . . Secondary . | . . . . Self-Inflicted Damage . | . . . . Shots . | . . . . Rammed 1 | . . 1 . Targets Rammed 1 | . . 1 . Kicked . | . . . . Crushed . | . . . . Highest Temperature 5 | . 5 2 . Average Temperature 2 | . 5 2 . Received Heat Transfer 168 | . 72 66 30 Siege Activations . | . . . . Martial Activations . | . . . . Shielding Activations . | . . . . Robots Disrupted . | . . . . Combat Hostiles . | . . . . Robots Corrupted 3 | . . 3 . Combat Hostiles 2 | . . 2 . Parts Fried 3 | . . 3 . Impact Corruptions 5 | . . 5 . Robots Melted . | . . . . Combat Hostiles . | . . . . Parts Melted 1 | . . . 1 Heat Transferred 518 | . . . 518 Parts Sabotaged . | . . . . Parts Stolen . | . . . . Parts Stripped . | . . . . Power Chain Reactions . | . . . . Alert | -11 -10 -10 -10 ------- Run | Yrd Mat Min Sub Maximum Alert Level . | . . . . Low Security (%) 100 | 100 100 100 . Level 1 . | . . . . Level 2 . | . . . . Level 3 . | . . . . Level 4 . | . . . . Level 5 . | . . . . High Security . | . . . . Max Security . | . . . . Peak Influence 157 | . 139 157 . Initial 22 | . . 22 . Average 68 | . 58 80 . Influence Increases 614 | . 253 361 . Destroy 0b10 Robot/C 400 | . 120 280 . Destroy 0b10 Robot/NC 35 | . 20 15 . Destroy Leader 88 | . 38 50 . Successful Hack 9 | . 9 . . Select Force Hacks 50 | . 50 . . Disable Machine 15 | . 15 . . Destroy Structure 2 | . 1 1 . Lose Combat Pursuer 15 | . . 15 . Influence Decreases 614 | . 196 403 15 Entered New Map 43 | . . 35 8 Time Decay 571 | . 196 368 7 Squads Dispatched 2 | . 2 . . Investigation 1 | . 1 . . Extermination . | . . . . Reinforcement 1 | . 1 . . Assault . | . . . . Garrison . | . . . . Intercept . | . . . . Searches Triggered . | . . . . Construction Impeded . | . . . . Haulers Reinforced . | . . . . Active Scanning Responses . | . . . . Cargo Convoy Interrupts . | . . . . Stealth | -11 -10 -10 -10 --------- Run | Yrd Mat Min Sub Distress Signals 2 | . 2 . . Communications Jammed . | . . . . Distress Signals . | . . . . Times Spotted 30 | . 12 15 3 Peak Tracking Total 5 | . 5 5 2 Tactical Retreats 1 | . . 1 . Traps | -11 -10 -10 -10 ------- Run | Yrd Mat Min Sub Traps Triggered . | . . . . Indirectly . | . . . . Trap Hack Attempts . | . . . . Triggered . | . . . . Disarmed . | . . . . Reprogrammed . | . . . . Reused . | . . . . Traps Extracted . | . . . . Installed . | . . . . Triggered . | . . . . Machines | -11 -10 -10 -10 ---------- Run | Yrd Mat Min Sub Machines Disabled 1 | . 1 . . Max in Single Turn 1 | . 1 . . Machines Repaired . | . . . . Machines Dismantled . | . . . . Machines Sabotaged 1 | . 1 . . Overloaded Fab Kills . | . . . . Hacking | -11 -10 -10 -10 --------- Run | Yrd Mat Min Sub Machines Accessed 4 | . 4 . . Terminals 3 | . 3 . . Fabricators . | . . . . Repair Stations . | . . . . Recycling Units 1 | . 1 . . Scanalyzers . | . . . . Garrison Access . | . . . . Total Hacks 11 | . 11 . . Successful 8 | . 8 . . Failed 3 | . 3 . . Catastrophic . | . . . . Database Lockouts . | . . . . Manual 5 | . 5 . . Terminals 8 | . 8 . . Fabricators . | . . . . Repair Stations . | . . . . Recycling Units 3 | . 3 . . Scanalyzers . | . . . . Garrison Access . | . . . . Terminal Hacks 3 | . 3 . . Branch Access Points 1 | . 1 . . Alert Level 2 | . 2 . . Fabricator Hacks . | . . . . Repair Station Hacks . | . . . . Recycling Unit Hacks 2 | . 2 . . Report Inventory 1 | . 1 . . Retrieve Components 1 | . 1 . . Scanalyzer . | . . . . Garrison Access Hacks . | . . . . Unauthorized Hacks 3 | . 3 . . Terminals 3 | . 3 . . Botnet 2 | . 2 . . Sabotage 1 | . 1 . . Fabricators . | . . . . Repair Stations . | . . . . Recycling Units . | . . . . Scanalyzers . | . . . . Garrison Access . | . . . . Data Cores Recovered . | . . . . Used . | . . . . Hacking Detections 3 | . 3 . . Full Trace Events . | . . . . Feedback Events . | . . . . Feedback Blocked . | . . . . Robot Schematics Acquired . | . . . . Robots Built . | . . . . Authchips . | . . . . Time . | . . . . Total Robot Build Rating . | . . . . Part Schematics Acquired . | . . . . Parts Built . | . . . . Authchips . | . . . . Time . | . . . . Total Part Build Rating . | . . . . Part Studies Acquired . | . . . . Parts Repaired . | . . . . Time . | . . . . Parts Recycled . | . . . . Recycled Matter . | . . . . Retrieved Matter . | . . . . Retrieved Components 1 | . 1 . . Parts Scanalyzed . | . . . . Part Schematics Acquired . | . . . . Parts Damaged . | . . . . Bothacking | -11 -10 -10 -10 ------------ Run | Yrd Mat Min Sub Used RIF Installer . | . . . . Robots Hacked . | . . . . Non-combat . | . . . . Combat . | . . . . Robot Hacks Applied . | . . . . Relay Couplers Released . | . . . . Fabnet Peak Effective % . | . . . . Robots Rewired . | . . . . Allies Hacked . | . . . . Hacks Repelled . | . . . . Allies | -11 -10 -10 -10 -------- Run | Yrd Mat Min Sub Total Allies . | . . . . Largest Group . | . . . . Highest-Rated Group . | . . . . Highest-Rated Ally . | . . . . Total Orders . | . . . . Ally Attacks . | . . . . Total Damage . | . . . . Kills . | . . . . Allies Corrupted . | . . . . Allies Melted . | . . . . Intel | -11 -10 -10 -10 ------- Run | Yrd Mat Min Sub Active Infowar (turns) 523 | . 489 34 . Structural 523 | . 489 34 . Robot Analysis Total . | . . . . Derelict Logs Recovered 2 | . . 1 1 Drone Launches . | . . . . Drone Recoveries . | . . . . Exploration | -11 -10 -10 -10 ------------- Run | Yrd Mat Min Sub Turns Passed 1676 | 68 548 857 203 Spaces Moved 1028 | 51 322 554 101 Core 7 | 7 . . . Treads 326 | . 144 182 . Legs . | . . . . Wheels 695 | 44 178 372 101 Hover . | . . . . Flight . | . . . . Fastest Speed 50 | 50 95 110 110 Average Speed 124 | 88 131 126 110 Slowest Speed 160 | 95 160 160 110 Overloaded Moves . | . . . . Propulsion Burnouts . | . . . . Robots Hopped . | . . . . Potential Cave-ins . | . . . . Cave-ins Triggered . | . . . . Exploration Rate (%) 41 | 4 59 98 5 Regions Visited 3 Branch Regions 2 Pre-discovered Areas 1 | . . . 1 Known Exits Taken 2 | . 1 1 . Unknown Exits Taken 1 | 1 . . . Scrap Searched 1 | . . 1 . Spaces Dug 1 | . . 1 . Terrain Destroyed 1 | . . 1 . Melee 1 | . . 1 . Projectile . | . . . . AOE . | . . . . Terrain Rammed . | . . . . Walls Destroyed . | . . . . Machines Disabled . | . . . . Actions | -11 -10 -10 -10 --------- Run | Yrd Mat Min Sub Total 1220 | 69 383 628 140 Wait 44 | . 13 23 8 Move 1025 | 50 321 553 101 Hop . | . . . . Pick Up 20 | 9 10 1 . Fast Attach 3 | 1 2 . . Attach 6 | 5 1 . . Detach 1 | . 1 . . Swap 10 | . 2 5 3 Drop 3 | . 1 2 . Fire 73 | 4 30 27 12 Melee 34 | . 2 16 16 Ram . | . . . . Kick . | . . . . Crush 1 | . . 1 . Escape Stasis . | . . . . Rewire . | . . . . Trap . | . . . . Miscellaneous . | . . . . Route ------- -11/Scrapyard -10/Materials (discovered 2 exits: *Mat / *Min) -10/Mines (discovered 3 exits: *Mat x2 / *Sub) -10/Subcaves History --------- Turn | Location | Event 20 | -11/Scrapyard | Discovered new exit (range 16) 69 | -11/Scrapyard | Entered Materials 70 | -10/Materials | Met a group of wandering Federalists 105 | -10/Materials | Identified exit to Mines 301 | -10/Materials | Build established: Mutant 400 | -10/Materials | Discovered new exit (range 15) 617 | -10/Materials | Entered Mines 641 | -10/Mines | Learned Materials terminal intel 641 | -10/Mines | Discovered new exit (range 9) 654 | -10/Mines | Identified exit to Materials 845 | -10/Mines | Discovered exit to Materials (range 7) 899 | -10/Mines | Core integrity fell below 50% 1170 | -10/Mines | Found a Scrap Suit stashed away for nefarious purposes 1173 | -10/Mines | Found Scrap Suit 1460 | -10/Mines | Discovered new exit (range 14) 1472 | -10/Mines | Identified exit to Subcaves 1474 | -10/Mines | Entered Subcaves 1475 | -10/Subcaves | Shifting Twisted Machinery released Sub. Power Source 1475 | -10/Subcaves | Approached by a straggling Scientist 1568 | -10/Subcaves | Learned Materials terminal intel 1573 | -10/Subcaves | Learned location of Zion (-6) 1573 | -10/Subcaves | Met a Zionite searching for "candidates" 1669 | -10/Subcaves | Core integrity fell below 20% 1677 | -10/Subcaves | Destroyed by IW-KKN(R) with Subdweller Laser Last Messages --------------- YQ-5CU(c): "I think it's somewhere northeast of here" 01557_ U6-CYM(z): "She is not going to be happy we haven't found any suitable candidates yet." 01568_ Acquired derelict log, extracted data. Data stored: Materials terminal intel. 01573_ U6-CYM(z): "Hey you! It's really dangerous down here, I feel that you could die at any moment. For your health and safety might I suggest a trip to Zion?" World map updated: -6/Zion. YQ-5CU(c): "I think it's somewhere east of here" 01617_ IS-KH8(R) suffers critical hit (Burn). 01620_ IS-KH8(R) destroyed. 01626_ Acquired 52 matter. YQ-5CU(c): "I think it's somewhere east of here" 01642_ YQ-5CU(c) destroyed. 01644_ Subatomizers dissect the Tech Extrapolator. 01666_ XA-32D(R) suffers critical hit (Burn). 01672_ Sub. Power Source melted. 01672_ XA-32D(R) destroyed. 01675_ Lgt. Treads destroyed. Map ----- +----------------------------------------------------+ | ???????????????# ##???????????????????????????? | | ???????????????# #????????????????????????????? | | ???????????????# ##????????????????????????????? | | ???????????????## #????????????????????????????? | | ???????????????## ##????????????????????????????? | | ???????????????# #???????????????##????????????? | | ???????????????## #????????###### #????????????? | | ???????????????# #???##### #????????????? | | ???????????????# #???# ## ## ???????? | | ???????????????# ##??# ??????? | | ???????????????# #### ## ??????? | | ???????????????## #* ####??????????????????? | | ???????????????# %= ##?????????????????????? | | ???????????????## ! ##??????????????????????? | | ???????????????## ## & ##??????????????????????? | | ???????????????# ## ## ###????????????????????? | | ???????????????# ## ##???????????????????? | | ??????????????## # ##??????????????????? | | ??????????????# " # # #??????????????????? | | ??????????????## ###" ""#### ##??????????????????? | | ???????????????##??##" ""## #??????????????????? | | ????????????????????## ""## ##??????????????????? | | ????????????????????#" ""## #??????????????????? | | ????????????????????##" "##%&##???? ##???????????? | | ????????????????????#"" ## # #???????????? | | ??????????????????### * R@ #?????? | | ???????????????#### ##### ?????? | | ??????????????## "### #????????? ????????? | | ??????????????# ##?## #???????????????????? | | ??????????????# ######???###???????????????????? | | ??????????????## ##??????????????????????????????? | | ???????????????###???????????????????????????????? | | ?????????????????????????????????????????????????? | | ?????????????????????????????????????????????????? | | ?????????????????????????????????????????????????? | | ?????????????????????????????????????????????????? | | ?????????????????????????????????????????????????? | | ?????????????????????????????????????????????????? | | ?????????????????????????????????????????????????? | | ?????????????????????????????????????????????????? | | ?????????????????????????????????????????????????? | | ?????????????????????????????????????????????????? | | ?????????????????????????????????????????????????? | | ?????????????????????????????????????????????????? | | ?????????????????????????????????????????????????? | | ?????????????????????????????????????????????????? | | ?????????????????????????????????????????????????? | | ?????????????????????????????????????????????????? | | ?????????????????????????????????????????????????? | | ?????????????????????????????????????????????????? | +----------------------------------------------------+ Best States ------------- Heat Dissipation 25 Energy Generation 10 Energy Capacity 250 Matter Stores 300 Matter Capacity 300 Sight Range 16 Terrain Scan Density 10 Evasion (%) 41 Recoil Reduction 2 Item Schematics ----------------- None Robot Schematics ------------------ None Fabricated ------------ Nothing Repaired ---------- Nothing Studied --------- None Alien Tech Used ----------------- None Achievements -------------- None Challenges ------------ None Game ------ Seed TeleporterBlanketMegatreads Manual? 0 Play Time 00:16:21 Cumulative 84.9 hours Start 2026.02.13 @ 07:58:55 End 2026.02.13 @ 08:13:45 Sessions 1 Manual Loads 0 Difficulty Rogue Special Mode None Game No. 101 Rogue 100 Adventurer 1 Explorer 0 Win Type - Total 0 Types 0/0/0/0/0/0/0/0/0/0 Lore% 23 Gallery% 41 Achievement% 29 Wizard Run 0 Options --------- Layout 0 ASCII 0 Keyboard 0 Movement Numpad Keybinds 0 Fullscreen 2 Font 18/SmallcapsGlow Map View 76x50 Zoom Use 0% Tactical HUD 1 Map Filters NONE Filters NONE Steam 1 RUN: 965baddb-72e1-4b50-adc4-5a20d661315d